bitfinex-derivatives/quotes_ETHF0:USTF0_20250817
["timestamp","ask_amount","ask_price","bid_price","bid_amount"]
[1755470656463,1.4369,4531.5,4531.4,0.3978]
[1755470656664,0.5706,4531.5,4531.1,0.2445]
[1755470656861,0.5706,4531.2,4531.1,1.4357]
[1755470657160,1.4369,4531.2,4531.1,1.4357]
[1755470657557,1.4369,4531.2,4531.1,0.3978]
[1755470657953,1.4369,4531.2,4531.1,0.5704]
[1755470658165,0.5874,4530.7,4530.6,1.1932]
[1755470658353,1.4585,4530.7,4530.6,1.444]
[1755470658561,1.65197054,4530.7,4530.6,0.4108]
[1755470658761,1.65197054,4530.7,4530.3,1.3643]
[1755470658961,1.4585,4530.4,4530.3,2.444]
[1755470659267,1.65197054,4530.4,4530.3,2.444]
[1755470659968,0.19347054,4530.4,4530.3,4.6518]
[1755470660167,3.5465,4531.5,4531.4,0.5842]
[1755470660470,3.7837,4531.5,4531.4,1.444]
[1755470661165,3.2078,4531.5,4531.4,1.444]
[1755470661357,4.0324,4531.5,4531.4,1.444]
[1755470661762,3.2078,4531.5,4531.4,1.444]
[1755470663569,0.2372,4531.8,4531.4,1.444]
[1755470663762,1.0778,4532.1,4532.0,0.5842]
[1755470663969,1.0778,4532.1,4532.0,1.1993]
[1755470663970,1.4585,4532.1,4532.0,1.1993]
[1755470664367,1.4585,4532.1,4532.0,0.5842]
[1755470664568,1.97340298,4532.1,4532.0,0.5842]
[1755470664971,1.10230298,4532.1,4531.7,0.3643]
[1755470665271,1.4585,4531.8,4531.7,0.6025]
[1755470665665,1.4585,4531.8,4531.6,0.2508]
[1755470665666,0.5874,4531.0,4530.9,4.4071]
[1755470665867,1.4585,4531.0,4530.9,4.4071]
[1755470666067,1.0361,4531.4,4531.3,0.1734]
[1755470666266,0.5759,4531.4,4531.3,1.444]
[1755470666471,1.4585,4531.4,4531.3,1.444]
[1755470666870,1.4585,4531.4,4531.3,1.1993]
[1755470667668,1.4585,4531.4,4531.3,1.444]
[1755470667968,0.8246,4531.4,4531.3,1.444]
[1755470669069,0.8246,4531.4,4530.9,3.2078]
[1755470669070,0.5759,4532.0,4531.9,1.444]
[1755470669669,3.2078,4532.9,4531.9,1.444]
[1755470669875,0.8246,4532.7,4532.6,0.5842]
[1755470670074,1.97402174,4532.7,4532.6,0.9485]
[1755470670674,1.97402174,4532.7,4532.4,0.2508]
[1755470670870,1.4585,4532.5,4531.8,0.6151]
[1755470671067,1.4585,4532.5,4532.4,0.9485]
[1755470671068,0.8406,4532.5,4532.4,0.9485]
[1755470671267,0.6339,4533.2,4532.4,0.5842]
[1755470671577,1.4585,4533.1,4533.0,1.1993]
[1755470671969,3.2078,4534.0,4532.3,0.44098]
[1755470672178,1.01588648,4533.9,4533.8,1.1993]
[1755470672378,1.64978648,4533.9,4533.8,0.2382]
[1755470672668,0.19131657,4533.9,4533.8,1.444]
[1755470672870,0.42851657,4533.9,4533.8,1.444]
[1755470673071,0.42824858,4533.9,4533.8,1.444]
[1755470673468,0.19104858,4533.9,4533.8,1.444]
[1755470673771,1.01564858,4533.9,4533.8,1.1993]
[1755470673967,1.64954858,4533.9,4533.8,0.9485]
[1755470674172,1.4585,4533.7,4533.6,4.4071]
[1755470674374,1.64954858,4533.7,4533.6,4.4071]
[1755470674873,0.5874,4533.4,4533.3,1.1993]
[1755470675066,1.0778,4533.4,4533.3,1.1993]
[1755470675272,0.4109,4533.4,4533.3,1.444]
[1755470675470,0.8246,4533.4,4533.3,1.444]
[1755470675671,1.4585,4533.4,4533.3,1.444]
[1755470675973,1.4585,4533.4,4533.3,1.1993]
[1755470677277,4.0324,4534.0,4533.9,0.5842]
[1755470677474,0.8711,4533.9,4533.2,0.3643]
[1755470677774,0.2372,4533.7,4533.2,0.8289]
[1755470677980,3.2078,4534.0,4533.7,0.5842]
[1755470678179,1.26824043,4533.9,4533.8,1.444]
[1755470678373,1.64894043,4533.9,4533.8,0.2382]
[1755470678679,1.64894043,4533.9,4533.8,0.4108]
[1755470678879,1.64894043,4533.9,4533.8,0.835]
[1755470679177,0.60134043,4533.9,4533.8,1.444]
[1755470679381,1.64894043,4533.9,4533.8,1.1993]
[1755470679774,1.64894043,4533.9,4533.1,3.2078]
[1755470679775,1.15854043,4533.9,4533.2,0.6151]
[1755470680076,0.022,4534.3,4533.2,1.444]
[1755470680077,0.5759,4533.3,4533.2,1.444]
[1755470680679,0.4109,4533.3,4533.2,1.444]
[1755470682073,0.4109,4533.3,4533.1,3.2078]
[1755470682074,0.2372,4534.0,4533.9,0.5842]
[1755470682275,1.65201815,4534.0,4533.9,1.1993]
[1755470682778,1.65201815,4534.0,4533.9,0.9485]
[1755470683879,1.65201815,4534.0,4533.9,1.1993]
[1755470684073,1.65201815,4534.0,4533.6,0.2447]
[1755470684074,1.65201815,4534.0,4533.4,0.2508]
[1755470684382,1.4585,4533.4,4533.3,1.1993]
[1755470685378,0.6339,4533.3,4532.8,1.6151]
[1755470685677,1.0778,4533.5,4533.4,0.5842]
[1755470685882,0.2372,4533.9,4533.4,1.444]
[1755470686083,0.4109,4533.7,4533.6,0.5842]
[1755470686279,0.60436348,4533.7,4533.6,1.444]
[1755470686581,1.27126348,4533.7,4533.6,1.444]
[1755470686781,1.4585,4533.6,4533.5,0.4108]
[1755470686976,1.4585,4533.6,4533.5,1.1993]
[1755470688386,1.65204508,4533.6,4533.5,0.2382]
[1755470688684,1.65204508,4533.6,4533.5,0.9485]
[1755470689578,1.65204508,4533.6,4533.5,1.2053]
[1755470691085,1.65218693,4533.6,4533.5,1.2053]
[1755470691479,1.01828693,4533.6,4533.5,1.2053]
[1755470691778,1.26593855,4533.6,4533.5,1.4578]
[1755470691984,1.63883855,4533.6,4533.5,1.4578]
[1755470692483,1.63883855,4533.6,4533.5,1.2053]
[1755470693383,0.19373855,4533.6,4533.5,1.2053]
[1755470693573,0.19373855,4533.6,4533.5,1.4578]
[1755470693776,0.60583855,4533.6,4533.5,1.4578]
[1755470694876,1.27483855,4533.6,4533.5,1.4578]
[1755470695580,1.64773855,4533.6,4533.5,1.4578]
[1755470696086,0.19373855,4533.6,4533.5,1.4578]
[1755470696385,1.27483855,4533.6,4533.5,1.4578]
[1755470696574,1.64773855,4533.6,4533.5,1.4578]
[1755470696778,1.64773855,4533.6,4533.5,1.2053]
[1755470697083,1.64806731,4533.6,4533.5,1.2053]
[1755470697284,1.64806731,4533.6,4533.5,1.4578]
[1755470697586,1.64806731,4533.6,4533.5,1.2053]
[1755470699880,1.64806731,4533.6,4533.5,1.4578]
[1755470700286,0.19450148,4533.6,4533.5,1.4578]
[1755470700684,0.19462866,4533.6,4533.5,4.6656]
[1755470700889,0.45,4534.5,4533.5,4.6656]
[1755470701081,1.03660994,4534.4,4534.3,0.5832]
[1755470701281,2.16483833,4534.4,4534.3,1.4677]
[1755470701785,1.03660994,4534.4,4534.3,1.4677]
[1755470702180,0.022,4534.2,4533.5,3.2078]
[1755470702376,0.2403,4534.0,4533.2,0.8845]
[1755470702686,0.2403,4534.0,4533.9,1.4677]
[1755470703285,0.4121,4534.0,4533.9,1.4677]
[1755470703484,0.842,4534.0,4533.9,1.4677]
[1755470703688,1.454,4534.0,4533.9,1.2152]
[1755470703883,0.4794,4533.9,4533.6,21.144]
[1755470704086,0.6903,4534.5,4533.6,21.7272]
[1755470704281,1.9700511,4534.4,4534.3,1.2152]
[1755470705690,1.9700511,4534.4,4534.3,0.9584]
[1755470705989,1.9700511,4534.4,4534.3,1.2152]
[1755470706990,1.454,4534.4,4534.3,1.2152]
[1755470708888,0.6017,4533.7,4533.6,1.2152]
[1755470709091,0.4794,4534.1,4533.6,21.0922]
[1755470709292,0.8408,4534.1,4534.0,0.5832]
[1755470709492,1.2137,4534.1,4534.0,1.4677]
[1755470710192,1.454,4534.1,4534.0,1.2152]
[1755470711787,1.454,4533.6,4533.5,3.2078]
[1755470711987,0.4121,4533.5,4533.4,1.2152]
[1755470712294,0.4121,4533.5,4533.4,1.4677]
[1755470712489,1.0811,4533.5,4533.4,1.4677]
[1755470712883,0.8229,4534.5,4533.5,0.022]
[1755470713091,1.904,4534.5,4534.4,1.2152]
[1755470713393,2.09511377,4534.5,4534.4,1.2152]
[1755470714190,2.09511377,4534.5,4534.4,0.5832]
[1755470714491,2.09511377,4534.5,4534.4,0.9584]
[1755470714693,2.09511377,4534.5,4534.4,0.5832]
[1755470714890,2.09511377,4534.5,4534.4,1.2152]
[1755470715691,2.09511377,4534.5,4534.4,1.4677]
[1755470715892,1.72221377,4534.5,4534.4,1.4677]
[1755470716093,1.48311377,4534.5,4534.4,1.4677]
[1755470716496,1.72221377,4534.5,4534.4,1.4677]
[1755470717292,2.09511377,4534.5,4534.4,1.4677]
[1755470717688,2.09502562,4534.5,4534.4,1.4677]
[1755470717997,1.72212562,4534.5,4534.4,1.4677]
[1755470718195,1.48302562,4534.5,4534.4,1.4677]
[1755470718402,0.64101326,4534.5,4534.4,1.4677]
[1755470718696,0.64098119,4534.5,4534.4,24.9737]
[1755470718898,3.2078,4535.7,4534.4,4.4897]
[1755470719102,1.4155,4535.6,4535.5,0.3304]
[1755470719397,1.4155,4535.6,4535.5,0.5749]
[1755470720304,1.0083,4535.7,4535.6,0.4049]
[1755470720596,0.5665,4535.2,4535.1,0.5749]
[1755470720901,1.4155,4535.2,4535.1,0.87601492]
[1755470721497,1.4155,4535.2,4535.1,1.12181492]
[1755470722102,0.5993,4535.6,4535.1,1.12181492]
[1755470722404,1.1716,4535.5,4535.4,0.8207]
[1755470722604,0.6529,4535.5,4535.4,1.12181492]
[1755470722999,1.4155,4535.5,4535.4,0.87601492]
[1755470723199,1.4155,4535.5,4535.4,0.47111492]
[1755470723400,1.4155,4535.5,4535.4,0.63151492]
[1755470723702,1.4155,4535.5,4535.4,0.30111492]
[1755470723911,1.4155,4535.5,4535.0,4.2078]
[1755470723912,0.5665,4535.1,4535.0,4.7827]
[1755470724094,0.5665,4535.1,4535.0,5.32932934]
[1755470724095,1.1716,4535.1,4535.0,5.32932934]
[1755470724500,0.8162,4535.1,4535.0,5.32932934]
[1755470724810,0.8162,4535.7,4535.6,0.3304]
[1755470725005,1.4155,4535.7,4535.6,0.5749]
[1755470725204,1.4155,4535.6,4535.5,20.502]
[1755470725709,0.5665,4535.2,4535.1,20.8324]
[1755470726008,0.5665,4535.2,4535.1,21.37666363]
[1755470726009,1.4155,4535.2,4535.1,21.37666363]
[1755470726208,1.4155,4535.2,4535.1,0.87566363]
[1755470726908,1.4155,4535.2,4535.1,21.37664434]
[1755470727207,1.4155,4535.2,4535.1,21.62244434]
[1755470727607,1.4155,4535.2,4535.1,21.62241739]
[1755470727810,0.7316,4535.8,4535.1,21.62241739]
[1755470728000,0.7316,4535.8,4535.7,0.5762]
[1755470728001,1.0601,4535.8,4535.7,0.5762]
[1755470728206,1.4155,4535.8,4535.7,0.5749]
[1755470728406,3.2078,4536.2,4535.1,20.501]
[1755470728621,0.5665,4535.3,4535.2,0.30070531]
[1755470728905,1.4155,4535.3,4535.2,0.47070531]
[1755470729106,0.849,4536.1,4535.2,1.12140531]
[1755470729310,1.4155,4536.1,4536.0,0.5749]
[1755470729612,1.4155,4536.1,4536.0,21.0739]
[1755470730111,1.0083,4536.1,4536.0,0.5749]
[1755470730411,1.4155,4536.1,4536.0,0.3304]
[1755470730604,1.4155,4536.1,4536.0,0.1604]
[1755470731007,1.60341487,4536.1,4536.0,0.1604]
[1755470731208,0.18791487,4536.1,4536.0,0.8207]
[1755470731408,0.18791487,4536.1,4536.0,21.62020355]
[1755470731606,0.18791487,4536.1,4536.0,4.32900355]
[1755470731804,1.60341487,4536.1,4536.0,24.58220355]
[1755470732006,1.60341487,4536.1,4536.0,24.0362]
[1755470732204,1.60341487,4536.1,4536.0,3.5382]
[1755470732605,1.60341487,4536.1,4536.0,3.7827]
[1755470732907,1.60341487,4536.1,4536.0,4.32883388]
[1755470733215,1.60341487,4536.1,4536.0,4.08303388]
[1755470733409,1.60341487,4536.1,4536.0,3.7827]
[1755470734214,0.67561487,4536.1,4536.0,4.0285]
[1755470734611,1.60341487,4536.1,4536.0,24.5255]
[1755470735215,1.60341487,4536.1,4536.0,24.5245]
[1755470735415,1.60341487,4536.1,4536.0,3.7827]
[1755470735611,1.60341487,4536.1,4536.0,24.2787]
[1755470736007,1.60341487,4536.1,4536.0,3.7827]
[1755470736204,1.60327606,4536.1,4536.0,23.8632]
[1755470736410,1.60327606,4536.1,4536.0,24.0332]
[1755470736609,1.60327606,4536.1,4536.0,24.2777]
[1755470736906,1.4155,4536.1,4536.0,24.2777]
[1755470737111,1.60326181,4536.1,4536.0,24.2777]
[1755470738614,1.60326181,4536.1,4536.0,24.5235]
[1755470738818,0.18776181,4536.1,4536.0,24.5235]
[1755470739113,0.18776181,4536.1,4536.0,4.0285]
[1755470739317,1.60326181,4536.1,4536.0,24.0322]
[1755470739518,0.67546181,4536.1,4536.0,24.5225]
[1755470739816,0.2497,4536.4,4536.3,0.3304]
[1755470740117,1.35967437,4536.4,4536.3,0.8207]
[1755470740317,1.60357437,4536.4,4536.3,0.5749]
[1755470740705,1.60357437,4536.4,4536.0,3.2078]
[1755470740911,1.4155,4536.4,4536.3,20.494]
[1755470741215,1.60359311,4536.4,4536.3,21.0689]
[1755470741615,0.43779311,4536.4,4536.3,21.3147]
[1755470742515,1.60359311,4536.4,4536.3,21.0679]
[1755470742907,1.60359311,4536.4,4536.3,20.492]
[1755470743107,1.4155,4536.1,4536.0,3.5382]
[1755470743311,0.18809311,4536.1,4536.0,24.82087226]
[1755470743516,0.2497,4536.1,4536.0,24.82087226]
[1755470743716,0.43779311,4536.1,4536.0,24.82087226]
[1755470744414,1.60359311,4536.1,4536.0,4.08307226]
[1755470745014,1.60359311,4536.1,4536.0,24.57407226]
[1755470745211,1.60359311,4536.1,4536.0,3.7827]
[1755470745415,1.4155,4536.1,4536.0,24.57438557]
[1755470745615,1.60385811,4536.1,4536.0,24.57438557]
[1755470745821,1.60385811,4536.1,4536.0,24.82018557]
[1755470746022,1.35995811,4536.1,4536.0,24.82019549]
[1755470746316,1.35995811,4536.1,4536.0,24.82028658]
[1755470746622,1.60385811,4536.1,4536.0,24.82028658]
[1755470747015,1.60391764,4536.1,4536.0,24.82030251]
[1755470749215,1.60391764,4536.1,4536.0,4.32930251]
[1755470749523,1.60391764,4536.1,4536.0,23.99860251]
[1755470749927,1.60391764,4536.1,4536.0,24.59290251]
[1755470750626,1.60391764,4536.1,4536.0,24.2921]
[1755470750923,1.60391764,4536.1,4536.0,3.8021]
[1755470751124,1.60391764,4536.1,4536.0,24.2911]
[1755470752223,1.60391764,4536.1,4536.0,24.5403]
[1755470753018,1.60391764,4536.1,4536.0,24.2911]
[1755470754524,1.60391764,4536.1,4536.0,24.2891]
[1755470754824,1.4155,4536.1,4536.0,3.8021]
[1755470755021,1.60418509,4536.1,4536.0,3.8021]
[1755470755217,1.60418509,4536.1,4536.0,24.0296]
[1755470755422,1.60418509,4536.1,4536.0,23.8592]
[1755470756322,1.60418509,4536.1,4536.0,3.3732]
[1755470756520,1.60418509,4536.1,4536.0,23.8592]
[1755470756726,1.60418509,4536.1,4536.0,24.2881]
[1755470756920,1.60418509,4536.1,4536.0,3.8021]
[1755470757126,1.60418509,4536.1,4536.0,24.2881]
[1755470758523,1.60418509,4536.1,4536.0,24.2871]
[1755470758719,1.60418509,4536.1,4536.0,24.5363]
[1755470759625,1.60418509,4536.1,4536.0,3.8021]
[1755470759821,1.60418509,4536.1,4536.0,24.2871]
[1755470760227,1.60418509,4536.1,4536.0,3.2078]
[1755470760423,1.4702,4535.9,4535.8,0.6096]
[1755470760725,0.574,4535.4,4535.3,20.484]
[1755470760927,1.63688509,4535.4,4535.3,21.314]
[1755470761117,1.63688509,4535.4,4535.3,21.9387]
[1755470761722,0.75898509,4535.4,4535.3,21.9387]
[1755470762322,1.63688509,4535.4,4535.3,0.4154]
[1755470762730,1.63688509,4535.4,4535.3,20.483]
[1755470762923,1.63688509,4535.4,4535.3,20.6534]
[1755470763124,1.4482,4535.4,4535.3,21.6792]
[1755470763425,1.4482,4535.2,4535.1,0.7816]
[1755470763631,1.6370593,4535.2,4535.1,21.2636]
[1755470763832,1.6370593,4535.2,4535.1,1.4547]
[1755470764036,1.63700722,4535.2,4535.1,21.9367]
[1755470764425,1.63700722,4535.2,4535.1,1.4547]
[1755470764623,1.63700722,4535.2,4535.1,21.9367]
[1755470764825,1.63700722,4535.2,4535.1,0.947]
[1755470765027,1.63700722,4535.2,4535.1,21.0638]
[1755470765235,1.63700722,4535.2,4535.1,21.43]
[1755470765626,1.63700722,4535.2,4535.1,21.9377]
[1755470765829,1.63700722,4535.2,4535.1,1.4547]
[1755470766135,1.63700722,4535.2,4535.1,21.9367]
[1755470766328,1.63700722,4535.2,4535.0,34.9508]
[1755470766536,1.63700722,4535.1,4535.0,3.2078]
[1755470766725,1.63700722,4535.1,4535.0,23.6898]
[1755470767033,1.63700722,4535.1,4535.0,4.6625]
[1755470767235,1.63700722,4535.1,4535.0,24.885]
[1755470767436,1.63700722,4535.1,4535.0,4.404]
[1755470767625,1.63700722,4535.1,4535.0,23.6888]
[1755470767828,1.63700722,4535.1,4535.0,3.2078]
[1755470768025,1.4482,4534.5,4534.4,3.2078]
[1755470768226,0.2484,4534.4,4533.9,3.2078]
[1755470768526,1.0601,4533.2,4533.1,3.2078]
[1755470768725,1.63700722,4533.2,4533.1,3.2078]
[1755470769028,1.63700722,4533.2,4533.1,4.6625]
[1755470769331,0.18880722,4533.2,4533.1,4.6625]
[1755470769530,1.24890722,4533.2,4533.1,24.6358]
[1755470769838,1.63700722,4533.2,4533.1,25.1435]
[1755470770032,0.8187,4533.7,4533.6,0.3358]
[1755470770232,1.63629549,4533.7,4533.6,1.4547]
[1755470770833,1.63629549,4533.7,4533.6,0.5808]
[1755470771135,1.63629549,4533.7,4533.6,0.947]
[1755470771437,1.63629549,4533.7,4533.6,1.4547]
[1755470771935,1.63629549,4533.7,4533.6,0.947]
[1755470772133,0.76209549,4533.7,4533.1,3.2078]
[1755470772437,1.4482,4533.2,4533.1,3.9894]
[1755470772638,0.8742,4534.0,4533.1,25.1465]
[1755470772936,0.4861,4534.0,4533.8,0.5808]
[1755470773131,0.4861,4534.0,4533.9,1.4547]
[1755470773132,1.0601,4534.0,4533.9,1.4547]
[1755470773438,1.4482,4534.0,4533.9,1.4547]
[1755470774830,0.8742,4533.9,4533.6,3.2078]
[1755470775026,1.4482,4533.7,4533.6,4.1548]
[1755470775530,1.4482,4533.7,4533.6,3.6232]
[1755470776227,1.4482,4533.7,4533.6,3.2078]
[1755470776624,1.4482,4533.7,4533.6,3.6232]
[1755470776830,1.4482,4533.7,4533.6,4.6625]
[1755470777227,1.4482,4533.7,4533.6,3.6232]
[1755470777931,1.4482,4533.7,4532.9,0.8723]
[1755470778132,1.4423,4533.0,4532.8,4.2078]
[1755470778330,1.62985177,4532.9,4532.8,1.0]
[1755470778536,1.4423,4532.9,4532.8,1.0]
[1755470778737,1.62985402,4532.9,4532.8,1.0]
[1755470779830,0.5048,4532.8,4532.3,3.2078]
[1755470780041,1.4423,4532.4,4532.3,3.2078]
[1755470780428,1.4423,4532.4,4532.0,1.2439]
[1755470780633,0.8637,4532.3,4532.0,1.6182]
[1755470780835,1.4423,4532.3,4532.2,1.4553]
[1755470781034,1.4423,4532.3,4532.2,0.9573]
[1755470781229,3.2078,4533.3,4532.0,1.0]
[1755470781230,0.5786,4532.1,4532.0,1.0]
[1755470781535,1.4423,4532.0,4531.9,0.7968]
[1755470781734,1.4423,4532.0,4531.9,2.2012]
[1755470781934,1.4423,4532.0,4531.9,2.4553]
[1755470782334,1.4423,4532.0,4531.9,1.9573]
[1755470782534,1.4423,4532.0,4531.9,1.583]
[1755470782739,1.4423,4532.0,4531.9,2.4553]
[1755470783136,3.2078,4532.8,4531.9,2.4553]
[1755470783339,1.0834,4532.1,4532.0,1.4553]
[1755470783837,0.5786,4532.1,4532.0,0.583]
[1755470784044,1.4423,4532.1,4532.0,0.9573]
[1755470784541,0.5786,4531.7,4531.6,4.7908]
[1755470784735,0.5786,4531.7,4531.6,5.6631]
[1755470784736,1.4423,4531.7,4531.6,5.6631]
[1755470785131,0.2533,4532.0,4531.6,4.0449]
[1755470785337,1.0834,4532.0,4531.9,1.4553]
[1755470785538,1.4423,4532.0,4531.7,20.486]
[1755470785732,0.8637,4531.9,4531.8,0.6997]
[1755470786044,0.5786,4531.9,4531.8,1.2012]
[1755470786238,0.5786,4531.9,4531.8,1.4553]
[1755470786437,1.4423,4531.9,4531.8,1.4553]
[1755470787543,1.4423,4531.9,4531.8,0.9573]
[1755470787742,1.4423,4531.9,4531.8,0.583]
[1755470787944,1.4423,4531.9,4531.8,1.4553]
[1755470788642,1.4423,4531.9,4531.6,23.6958]
[1755470788643,1.4423,4531.9,4531.6,3.2078]
[1755470788840,1.4423,4531.5,4531.4,1.0]
[1755470789237,0.6104,4532.1,4531.4,1.1605]
[1755470789445,15.928691,4534.1,4531.9,1.1977]
[1755470789446,0.1874804,4532.0,4531.9,1.1977]
[1755470789637,0.4112,4532.1,4532.0,1.4553]
[1755470789840,0.5786,4532.1,4532.0,1.4553]
[1755470790048,1.0834,4532.4,4532.3,1.4553]
[1755470790939,1.0834,4533.2,4533.1,0.583]
[1755470791147,1.62970097,4533.2,4533.1,1.4553]
[1755470791547,0.3404,4532.8,4532.7,3.2078]
[1755470791740,0.3404,4532.8,4532.6,20.487]
[1755470791741,0.5786,4532.4,4532.3,0.9573]
[1755470791942,0.6122,4533.4,4532.4,0.8723]
[1755470792141,1.4423,4532.8,4532.7,1.4553]
[1755470792343,1.4423,4532.8,4532.7,4.6631]
[1755470792542,0.8637,4534.0,4532.8,0.498]
[1755470792749,0.8637,4533.8,4532.9,0.8723]
[1755470792945,0.5786,4533.1,4533.0,0.6997]
[1755470793145,1.62982801,4533.1,4533.0,0.1605]
[1755470793345,1.4423,4532.7,4532.6,1.0363]
[1755470793542,1.4423,4532.7,4532.6,0.4181]
[1755470793748,1.4423,4532.7,4532.6,1.4553]
[1755470795351,1.63014554,4532.7,4532.6,1.4553]
[1755470795748,0.5786,4532.3,4532.2,4.6631]
[1755470796053,1.4423,4532.3,4532.2,4.96475633]
[1755470796258,1.63017006,4532.3,4532.2,3.7908]
[1755470796444,0.18787006,4532.3,4532.2,4.96499437]
[1755470796853,1.63017006,4532.3,4532.2,4.96499437]
[1755470797248,1.63017006,4532.3,4532.2,3.50969437]
[1755470797445,1.63017006,4532.3,4532.2,4.09269437]
[1755470797645,1.63017006,4532.3,4532.2,4.96499437]
[1755470797955,1.63017006,4532.3,4532.2,4.4192]
[1755470798152,1.63017006,4532.3,4532.2,4.6631]
[1755470798552,1.63017006,4532.3,4532.2,4.96535648]
[1755470798753,0.18787006,4532.3,4532.2,4.96535648]
[1755470799153,0.8319,4533.3,4533.2,0.583]
[1755470799345,1.63264189,4533.3,4533.2,1.4553]
[1755470800050,1.4423,4533.3,4533.2,1.4553]
[1755470801351,0.8637,4534.0,4533.4,0.2541]
[1755470801549,0.8637,4534.0,4533.9,0.1605]
[1755470801550,1.4423,4534.0,4533.9,0.1605]
[1755470801757,1.4423,4534.0,4533.6,0.6182]
[1755470801758,1.9581957,4534.0,4533.6,0.6182]
[1755470801959,0.5786,4533.7,4533.6,0.7787]
[1755470802148,0.5786,4532.8,4532.4,0.3743]
[1755470802347,0.3404,4532.6,4532.5,0.30213397]
[1755470802550,1.4423,4532.6,4532.5,0.30213397]
[1755470803254,1.4423,4532.6,4532.5,0.30224895]
[1755470806959,1.95910472,4532.6,4532.5,0.30224895]
[1755470807152,0.5786,4532.2,4532.1,3.2078]
[1755470807458,1.4423,4532.2,4532.1,3.51071946]
[1755470807662,1.4643,4532.2,4532.1,0.30291946]
[1755470807955,1.0611,4531.6,4531.5,3.2078]
[1755470808154,1.4697,4531.6,4531.5,3.51081899]
[1755470809058,1.4697,4531.6,4531.5,0.30301899]
[1755470809559,0.5749,4531.6,4531.5,0.30297171]
[1755470810164,1.4697,4531.6,4531.5,0.46667171]
[1755470811265,1.65791246,4531.6,4531.5,0.46667171]
[1755470812662,1.65784835,4531.6,4531.5,0.46667171]
[1755470812960,1.27969493,4531.6,4530.9,3.2078]
[1755470813264,1.4697,4531.1,4531.0,0.46693889]
[1755470813453,1.65784835,4531.1,4531.0,0.46693889]
[1755470813866,1.65784835,4531.1,4531.0,1.75173889]
[1755470814963,0.18814835,4531.1,4531.0,1.75173889]
[1755470818767,0.2519,4531.6,4531.0,0.5754]
[1755470818973,1.4697,4531.6,4531.5,1.4485]
[1755470819178,1.65764071,4531.6,4531.5,1.4485]
[1755470819579,1.65763642,4531.6,4531.5,1.4485]
[1755470820173,1.65763642,4531.6,4531.5,0.9439]
[1755470820174,0.18793642,4531.6,4531.5,0.9439]
[1755470820377,0.18793642,4531.6,4531.5,4.95974947]
[1755470820773,3.2078,4532.5,4531.5,4.98174947]
[1755470821076,0.2519,4532.7,4532.4,1.4485]
[1755470821282,0.6605,4532.7,4532.6,0.5754]
[1755470821477,1.4697,4532.7,4532.6,1.4485]
[1755470823181,0.4086,4531.6,4531.5,4.6563]
[1755470823380,0.389,4532.6,4531.6,0.44106]
[1755470823584,1.0807,4532.5,4532.4,0.1637]
[1755470823776,3.4617,4533.2,4532.4,0.3327]
[1755470824079,3.4617,4533.2,4532.6,1.4485]
[1755470824080,0.5749,4532.7,4532.6,1.4485]
[1755470824276,0.5749,4532.7,4532.6,1.75219536]
[1755470824477,0.8268,4532.7,4532.6,1.75219536]
[1755470824680,0.8288,4533.4,4533.3,0.5754]
[1755470824879,1.4697,4533.9,4533.8,0.5754]
[1755470825074,1.4697,4533.9,4533.8,1.4485]
[1755470825279,0.8288,4534.5,4534.4,0.3327]
[1755470825479,1.4697,4534.5,4534.0,0.3685]
[1755470825684,1.4697,4534.1,4534.0,0.1637]
[1755470825888,0.5749,4534.1,4534.0,0.1637]
[1755470826384,1.4697,4534.1,4534.0,0.1637]
[1755470826983,3.2078,4535.3,4533.9,0.5046]
[1755470827184,1.4697,4535.0,4534.9,0.1637]
[1755470827980,1.4697,4535.0,4534.9,0.3327]
[1755470828181,1.4697,4535.0,4534.9,1.4485]
[1755470828582,3.2078,4535.3,4535.2,1.4485]
[1755470828883,1.4697,4535.9,4535.8,0.5771]
[1755470829085,1.4697,4535.9,4535.6,0.6287]
[1755470829284,0.5749,4535.5,4535.4,0.4081]
[1755470829480,1.4697,4535.5,4535.4,0.1637]
[1755470829885,0.5749,4535.5,4535.1,0.8731]
[1755470830085,1.4697,4535.4,4535.3,0.3327]
[1755470830286,1.4697,4535.4,4535.3,0.9614]
[1755470831884,1.4697,4535.4,4535.3,1.4485]
[1755470833292,1.4697,4535.4,4535.3,0.3327]
[1755470834788,0.3326,4534.8,4534.7,0.7766]
[1755470834991,1.4697,4534.8,4534.7,1.4485]
[1755470836694,0.5749,4534.3,4534.2,1.1883]
[1755470836888,0.2519,4534.6,4534.5,0.5754]
[1755470837093,0.8948,4535.3,4534.1,3.2078]
[1755470837389,1.4697,4535.3,4535.2,0.1637]
[1755470838086,0.57,4535.0,4534.9,1.2184]
[1755470838294,1.4431,4535.0,4534.9,1.4699]
[1755470840892,3.2078,4535.4,4534.9,1.4699]
[1755470841093,0.8219,4535.1,4535.0,1.4699]
[1755470841287,1.2806,4535.1,4535.0,1.4699]
[1755470841493,1.4431,4535.1,4535.0,1.4699]
[1755470843591,1.4431,4535.1,4535.0,0.3362]
[1755470843792,1.4431,4534.5,4534.4,1.4699]
[1755470844992,0.57,4534.5,4534.4,1.4699]
[1755470845791,0.57,4534.5,4534.1,3.2078]
[1755470845994,0.57,4533.7,4533.6,4.6777]
[1755470846188,1.4431,4533.7,4533.6,4.6777]
[1755470847892,1.1878,4533.7,4533.6,4.6777]
[1755470848594,1.4431,4533.7,4533.6,4.6777]
[1755470849599,3.2078,4534.8,4533.6,3.2078]
[1755470849896,1.4431,4534.6,4534.5,0.1655]
[1755470850196,0.57,4534.3,4534.2,1.2184]
[1755470850397,1.4431,4534.3,4534.2,1.2184]
[1755470851897,0.8731,4535.2,4534.2,1.4919]
[1755470852199,1.4431,4535.1,4535.0,1.4699]